Cogmind - Beta 15 @@@ ROGUE MODE // 2025.07.24 @ 10:37:51 Player: FenRhew Result: Destroyed by Y-64 Sentinel with KE Penetrator Performance ------------- Evolutions (1) 500 Regions Visited (5) 1000 Robots Destroyed (68) 340 Value Destroyed (2100) 2100 Prototype IDs (18) 360 Alien Tech Used (0) 0 Bonus (310) 310 TOTAL SCORE: 4610 Bonus ------- High Alert Combat Kills 10 Met Imprinter 300 Cogmind --------- Core Integrity 0/400 Matter 24/300 Energy 100/100 System Corruption 3% Temperature Cool (23) Movement Walking (120) Location -6/Proximity Caves Parts ------- > --- POWER (1) -------- (None) > --- PROPULSION (3) --- Enhanced Flexi-carbon Leg Enhanced Flexi-carbon Leg Improved Flight Unit > --- UTILITY (3) ------ High-capacity Storage Unit Phase Shifter Makeshift Light Armor Plating > --- WEAPON (2) ------- Vibroblade > --- INVENTORY (20) --- Light Nuclear Core Improved Flight Unit Improved Flight Unit Improved Flight Unit Improved Flight Unit Makeshift Flight Unit Makeshift Flight Unit Medium Storage Unit Experimental Signal Interpreter Advanced Terrain Scan Processor Makeshift Hacking Suite Makeshift System Shield Makeshift System Shield Relay Coupler [Programmer] (88) Rocket Array Vibroblade Peak State ------------ > --- POWER ------------ Makeshift Power Source > --- PROPULSION ------- Enhanced Flexi-carbon Leg Enhanced Flexi-carbon Leg Improved Flight Unit > --- UTILITY ---------- High-capacity Storage Unit Makeshift Light Armor Plating System Purifier > --- WEAPON ----------- RU-N14's Throwing Claymores Vibroblade > --- INVENTORY -------- Light Nuclear Core Improved Flight Unit Improved Flight Unit Improved Flight Unit Makeshift Flight Unit Makeshift Flight Unit Medium Storage Unit Signal Interpreter Advanced Terrain Scan Processor Phase Shifter Makeshift Hacking Suite Makeshift System Shield Makeshift System Shield Relay Coupler [Programmer] Rocket Array RU-N14's Throwing Claymores [Rating: 56] Favorites ----------- Power Makeshift Power Source Engine Makeshift Power Source Propulsion Light Treads Treads Light Treads Leg Enhanced Flexi-carbon Leg Wheel Wheel Flight Unit Improved Flight Unit Utility High-capacity Storage Unit Device Improved Heat Sink Storage High-capacity Storage Unit Processor Experimental Signal Interpreter Protection Hardened Light Armor Plating Weapon Beam Rifle Energy Gun Beam Rifle Ballistic Gun Assault Rifle Launcher Rocket Array Special Weapon RU-N14's Throwing Claymores Impact Weapon Makeshift Hammer Slashing Weapon Vibroblade Build | -11 -10 -9 -9 -7 -6 ------- Run | Yrd Mat Mat Min Zio Pro Slots Evolved 2 | . . 2 . . . Power . | . . . . . . Propulsion 1 | . . 1 . . . Utility 1 | . . 1 . . . Weapon . | . . . . . . Parts Attached 60 | 7 2 26 2 9 14 Power 4 | 1 . 2 . 1 . Engine 4 | 1 . 2 . 1 . Core . | . . . . . . Reactor . | . . . . . . Propulsion 20 | 2 . 10 . 2 6 Treads 13 | 2 . 9 . 2 . Leg 2 | . . . . . 2 Wheel 1 | . . . . . 1 Hover . | . . . . . . Flight 4 | . . 1 . . 3 Utility 20 | 2 2 6 2 2 6 Device 9 | 1 . 2 1 1 4 Storage 4 | 1 1 1 . . 1 Processor 1 | . . . . . 1 Hackware . | . . . . . . Protection 6 | . 1 3 1 1 . Artifact . | . . . . . . Weapon 16 | 2 . 8 . 4 2 Energy Gun 8 | . . 8 . . . Energy Cannon . | . . . . . . Ballistic Gun 2 | 2 . . . . . Ballistic Cannon . | . . . . . . Launcher 1 | . . . . 1 . Special Weapon 3 | . . . . 2 1 Impact Weapon 1 | . . . . 1 . Slashing Weapon 1 | . . . . . 1 Piercing Weapon . | . . . . . . Special Melee Weapon . | . . . . . . Unidentified Prototypes 11 | . . 2 . 3 6 Corrupted Parts 1 | . . . . 1 . System Corruption 4 | . . . . 4 . Parts Lost 18 | . . 8 1 1 8 Power 3 | . . 1 1 . 1 Propulsion 6 | . . 2 . . 4 Utility 7 | . . 3 . 1 3 Weapon 2 | . . 2 . . . Highest Loss Streak 5 | . . 5 1 1 5 To Critical Strikes . | . . . . . . Average Backups 15 | 4 7 14 19 19 18 Power 1 | . 1 1 2 1 1 Propulsion 5 | 2 3 4 7 6 6 Utility 5 | . 2 3 5 9 8 Weapon 3 | . 1 4 4 2 2 Tool/Special . | . . . . . . Unused Backups 25 | . 3 2 3 3 14 Power 2 | . . . . 1 1 Propulsion 9 | . 3 . 2 . 4 Utility 10 | . . 1 . 1 8 Weapon 4 | . . 1 1 1 1 Tool/Special . | . . . . . . Average Slot Usage (%) 98 | . 100 97 94 99 97 Engine 10 | . 14 11 6 10 11 Treads 30 | . 28 32 33 32 17 Device 7 | . 8 7 11 6 7 Storage 11 | . 14 12 11 11 11 Protection 12 | . 5 11 11 15 13 Energy Gun 11 | . . 20 22 6 . Ballistic Gun 2 | . 28 1 . . . Launcher 2 | . . . . 5 3 Special Weapon 2 | . . . . 5 7 Impact Weapon 2 | . . . . 5 7 Peak Build Rating 56 | 7 7 20 21 36 56 Average Rating 22 | 5 6 14 18 30 38 On Entrance 13 | . 7 7 18 18 32 Naked Turns . | . . . . . . Heaviest Build 66 | 14 16 59 59 66 64 Greatest Support 66 | 40 40 60 60 66 66 Greatest Overweight (x) 6 | . . 1 . 1 6 Average Overweight (x) . | . . . . . . Largest Inventory Capacity 20 | 8 20 20 20 20 20 Average Capacity 18 | 7 8 19 20 20 20 Most Carried 20 | 5 8 20 20 20 20 Average Carried 15 | 4 7 14 19 19 17 Final Capacity 20 | 8 8 20 20 20 20 Final Carried 20 | 5 8 20 20 19 16 Class Distribution -------------------- 81% | Mutant 18% | Scavenger-Mutant Dominant Class ---------------- Mutant | -10/Materials Mutant | -9/Materials Scavenger-Mutant | -9/Mines Mutant | -7/Zion Mutant | -6/Proximity Caves Resources | -11 -10 -9 -9 -7 -6 ----------- Run | Yrd Mat Mat Min Zio Pro Matter Collected 1391 | 308 191 561 21 138 172 Remotely . | . . . . . . Salvage Created 2116 | 113 258 1125 134 . 486 Parts 128 | 8 27 73 2 . 18 Haulers Intercepted 4 | . 1 2 . . 1 Recyclers Shooed . | . . . . . . Parts Field Recycled . | . . . . . . Retrieved Matter . | . . . . . . Parts Self-Destructed 12 | . . . . 1 11 Prevented 4 | . . . . . 4 Kills | -11 -10 -9 -9 -7 -6 ------- Run | Yrd Mat Mat Min Zio Pro Combat Hostiles Destroyed 53 | . 9 26 3 . 15 Melee 1 | . . . . . 1 Guns 36 | . 9 24 3 . . Cannons 1 | . . . . . 1 AOE 11 | . . . . . 11 Classes Destroyed 13 | 1 3 5 . . 4 Worker 1 | . . 1 . . . Builder 1 | . . 1 . . . Tunneler 5 | 5 . . . . . Hauler 4 | . 1 2 . . 1 Operator 2 | . . 2 . . . Watcher 2 | . . 2 . . . Swarmer 13 | . 6 7 . . . Grunt 27 | . 3 13 3 . 8 Duelist 2 | . . . . . 2 Sentry 6 | . . 6 . . . Specialist 1 | . . . . . 1 Hunter 3 | . . . . . 3 Programmer 1 | . . . . . 1 Best Kill Streak 4 | 3 3 4 3 . 4 Combat Bots Only 4 | . 3 4 3 . 4 Max Kills in Single Turn 2 | 1 2 2 1 . 2 Gunslinging 1 | . 1 1 . . . Exploded 2 | . . . . . 2 Melee 1 | . . . . . 1 Uniques/NPCs Destroyed . | . . . . . . Combat | -11 -10 -9 -9 -7 -6 -------- Run | Yrd Mat Mat Min Zio Pro Hostile Shots Fired 377 | . 54 182 8 . 133 Missed 126 | . 10 59 1 . 56 Hits 251 | . 44 123 7 . 77 Melee 1 | . . . . . 1 Projectile 250 | . 44 123 7 . 76 AOE 3 | . . . 3 . . Critical Strikes 3 | . . 1 . . 2 Part Disruptions 1 | . . . . . 1 Damage Taken 3461 | . 426 1379 178 . 1478 Core 537 | . 116 193 15 . 213 Absorbed by Shields 107 | . . . . . 107 Regen/Repaired (Parts) 130 | . . . . 130 . Core Remaining (%) 76 | 100 53 . . . . Volleys Fired 176 | 12 34 107 5 1 17 Largest 2 | 2 2 2 2 2 1 Hottest 112 | 40 40 112 90 90 45 Shots Fired 320 | 24 69 198 10 2 17 Gun 303 | 24 69 198 10 2 . Cannon . | . . . . . . Launcher 8 | . . . . . 8 Special 9 | . . . . . 9 Kinetic 105 | 24 69 12 . . . Thermal 166 | . . 166 . . . Explosive 17 | . . . . . 17 Electromagnetic 32 | . . 20 10 2 . Robot Hit Streak 14 | 5 5 14 7 . 6 Robot Miss Streak 7 | 2 4 3 2 . 7 Penetration Max . | . . . . . . Secondary Targets 5 | . 1 4 . . . Max Gunslinging Chain 1 | . 1 1 . . . Shots Hit Robots 176 | 14 35 101 7 . 19 Core Hits 115 | 7 17 47 4 . 40 Critical Kills 1 | . . . . . 1 Critical Parts Destroyed 1 | . . . . . 1 Critical Strikes 11 | . . 7 1 . 3 Burn 7 | . . 7 . . . Corrupt 1 | . . . 1 . . Smash 2 | . . . . . 2 Sever 1 | . . . . . 1 Melee Attacks 14 | . . . . 1 13 Impact 14 | . . . . 1 13 Slashing . | . . . . . . Piercing . | . . . . . . Sneak Attacks . | . . . . . . Combat Hostiles . | . . . . . . Follow-up Attacks . | . . . . . . Damage Inflicted 4936 | 159 384 1494 110 . 2789 Guns 2147 | 159 384 1494 110 . . Cannons . | . . . . . . Explosions 2306 | . . . . . 2306 Melee 340 | . . . . . 340 Ramming . | . . . . . . Kinetic 543 | 159 384 . . . . Thermal 1494 | . . 1494 . . . Explosive 2306 | . . . . . 2306 Electromagnetic 110 | . . . 110 . . Impact 340 | . . . . . 340 Slashing 143 | . . . . . 143 Piercing . | . . . . . . Highest Corruption 5 | . 5 . . 4 3 Average Corruption 3 | . 4 . . 4 2 Corruption Purged . | . . . . . . Corruption Blocked . | . . . . . . Effects 18 | . 8 . . 1 9 Message Errors 3 | . 1 . . 1 1 Matter Fused 5 | . 2 . . . 3 Heat Flow Errors 2 | . . . . . 2 Energy Discharges 2 | . 2 . . . . Parts Rejected 2 | . 1 . . . 1 Data Loss (minor) 1 | . . . . . 1 Data Loss (major) 2 | . 1 . . . 1 Misfires 1 | . 1 . . . . Overload Shots . | . . . . . . Overflow Damage 96 | . . . . . 96 Projectiles . | . . . . . . Explosions 51 | . . . . . 51 Melee 45 | . . . . . 45 Knockbacks 1 | . . . . . 1 Impact 1 | . . . . . 1 Kinetic . | . . . . . . Secondary . | . . . . . . Self-Inflicted Damage 125 | . . . . . 125 Shots 6 | . . . . . 6 Rammed . | . . . . . . Targets Rammed . | . . . . . . Kicked . | . . . . . . Crushed . | . . . . . . Highest Temperature 486 | . 37 486 19 9 268 Average Temperature 102 | . 12 115 13 6 99 Received Heat Transfer 845 | . 120 447 27 . 251 Effects 17 | . . 15 . . 2 Shutdowns 3 | . . 3 . . . Energy Bleed 3 | . . 2 . . 1 Interference 6 | . . 5 . . 1 Short Circuit 2 | . . 2 . . . Damage (minor) 1 | . . 1 . . . Damage (major) 2 | . . 2 . . . Siege Activations . | . . . . . . Martial Activations . | . . . . . . Shielding Activations . | . . . . . . Robots Disrupted . | . . . . . . Combat Hostiles . | . . . . . . Robots Corrupted 3 | . . . . . 3 Combat Hostiles 2 | . . . . . 2 Parts Fried 1 | . . . . . 1 Impact Corruptions 3 | . . . . . 3 Robots Melted 2 | . . 2 . . . Combat Hostiles 2 | . . 2 . . . Parts Melted 19 | . . 19 . . . Heat Transferred 4329 | . . 4329 . . . Parts Sabotaged . | . . . . . . Parts Stolen . | . . . . . . Parts Stripped . | . . . . . . Power Chain Reactions . | . . . . . . Alert | -11 -10 -9 -9 -7 -6 ------- Run | Yrd Mat Mat Min Zio Pro Maximum Alert Level 2 | . . 2 . . . Low Security (%) 77 | 100 100 60 100 . . Level 1 14 | . . 24 . . . Level 2 8 | . . 14 . . . Level 3 . | . . . . . . Level 4 . | . . . . . . Level 5 . | . . . . . . High Security . | . . . . . . Max Security . | . . . . . . Peak Influence 466 | 10 125 466 180 . . Initial 180 | . . 39 180 . . Average 120 | . 49 166 81 . . Influence Increases 1628 | 25 249 929 70 . 355 Destroy 0b10 Robot/C 1060 | . 180 520 60 . 300 Destroy 0b10 Robot/NC 75 | 25 5 40 . . 5 Destroy Leader 220 | . 42 118 10 . 50 Successful Hack 27 | . 7 20 . . . Disable Machine 45 | . . 45 . . . Destroy Structure 6 | . . 6 . . . Lose Combat Pursuer 195 | . 15 180 . . . Influence Decreases 1556 | 25 155 560 533 . 283 Entered New Map 338 | . . 55 283 . . Time Decay 1048 | 25 155 425 240 . 203 Lost Part 170 | . . 80 10 . 80 Squads Dispatched 5 | . 2 3 . . . Investigation 1 | . . 1 . . . Extermination . | . . . . . . Reinforcement 4 | . 2 2 . . . Assault . | . . . . . . Garrison . | . . . . . . Intercept . | . . . . . . Searches Triggered . | . . . . . . Construction Impeded . | . . . . . . Haulers Reinforced . | . . . . . . Active Scanning Responses . | . . . . . . Cargo Convoy Interrupts . | . . . . . . Stealth | -11 -10 -9 -9 -7 -6 --------- Run | Yrd Mat Mat Min Zio Pro Distress Signals 9 | . 1 7 . . 1 Communications Jammed . | . . . . . . Distress Signals . | . . . . . . Times Spotted 95 | . 16 50 4 . 25 Peak Tracking Total 7 | . 6 7 3 . 6 Tactical Retreats 8 | . 1 7 . . . Traps | -11 -10 -9 -9 -7 -6 ------- Run | Yrd Mat Mat Min Zio Pro Traps Triggered 4 | . 4 . . . . Indirectly . | . . . . . . Trap Hack Attempts . | . . . . . . Triggered . | . . . . . . Disarmed . | . . . . . . Reprogrammed . | . . . . . . Reused . | . . . . . . Traps Extracted . | . . . . . . Installed . | . . . . . . Triggered . | . . . . . . Machines | -11 -10 -9 -9 -7 -6 ---------- Run | Yrd Mat Mat Min Zio Pro Machines Disabled 8 | . . 3 . . 5 Max in Single Turn 3 | . . 1 . . 3 Machines Repaired . | . . . . . . Machines Dismantled . | . . . . . . Machines Sabotaged . | . . . . . . Overloaded Fab Kills . | . . . . . . Hacking | -11 -10 -9 -9 -7 -6 --------- Run | Yrd Mat Mat Min Zio Pro Machines Accessed 8 | . 1 6 1 . . Terminals 7 | . 1 6 . . . Fabricators . | . . . . . . Repair Stations . | . . . . . . Recycling Units . | . . . . . . Scanalyzers . | . . . . . . Garrison Access . | . . . . . . Total Hacks 20 | . 2 17 1 . . Successful 8 | . 2 5 1 . . Failed 12 | . . 12 . . . Catastrophic 2 | . . 2 . . . Database Lockouts . | . . . . . . Manual 5 | . 1 4 . . . Terminals 19 | . 2 17 . . . Fabricators . | . . . . . . Repair Stations . | . . . . . . Recycling Units . | . . . . . . Scanalyzers . | . . . . . . Garrison Access . | . . . . . . Terminal Hacks 8 | . 2 5 1 . . Part Schematic 1 | . 1 . . . . Prototype ID Bank 4 | . 1 3 . . . Open Door 1 | . . . 1 . . Terminal Index 1 | . . 1 . . . Hauler Manifests 1 | . . 1 . . . Fabricator Hacks . | . . . . . . Repair Station Hacks . | . . . . . . Recycling Unit Hacks . | . . . . . . Scanalyzer . | . . . . . . Garrison Access Hacks . | . . . . . . Unauthorized Hacks . | . . . . . . Terminals . | . . . . . . Fabricators . | . . . . . . Repair Stations . | . . . . . . Recycling Units . | . . . . . . Scanalyzers . | . . . . . . Garrison Access . | . . . . . . Data Cores Recovered . | . . . . . . Used . | . . . . . . Hacking Detections 7 | . 1 6 . . . Full Trace Events 2 | . . 2 . . . Feedback Events . | . . . . . . Feedback Blocked . | . . . . . . Robot Schematics Acquired 4 | . . . . 4 . Robots Built . | . . . . . . Authchips . | . . . . . . Time . | . . . . . . Total Robot Build Rating . | . . . . . . Part Schematics Acquired 16 | . 1 . . 15 . Parts Built . | . . . . . . Authchips . | . . . . . . Time . | . . . . . . Total Part Build Rating . | . . . . . . Parts Repaired . | . . . . . . Time . | . . . . . . Parts Recycled . | . . . . . . Recycled Matter . | . . . . . . Retrieved Matter . | . . . . . . Retrieved Components . | . . . . . . Parts Scanalyzed . | . . . . . . Part Schematics Acquired . | . . . . . . Parts Damaged . | . . . . . . Bothacking | -11 -10 -9 -9 -7 -6 ------------ Run | Yrd Mat Mat Min Zio Pro Used RIF Installer . | . . . . . . Robots Hacked . | . . . . . . Non-combat . | . . . . . . Combat . | . . . . . . Robot Hacks Applied . | . . . . . . Relay Couplers Released . | . . . . . . Fabnet Peak Effective % . | . . . . . . Robots Rewired . | . . . . . . Allies Hacked . | . . . . . . Hacks Repelled . | . . . . . . Allies | -11 -10 -9 -9 -7 -6 -------- Run | Yrd Mat Mat Min Zio Pro Total Allies . | . . . . . . Largest Group . | . . . . . . Highest-Rated Group . | . . . . . . Highest-Rated Ally . | . . . . . . Total Orders . | . . . . . . Ally Attacks . | . . . . . . Total Damage . | . . . . . . Kills . | . . . . . . Allies Corrupted . | . . . . . . Allies Melted . | . . . . . . Intel | -11 -10 -9 -9 -7 -6 ------- Run | Yrd Mat Mat Min Zio Pro Active Infowar (turns) 1011 | 8 297 492 . . 214 Sensors 214 | . . . . . 214 Seismic 797 | 8 297 492 . . . Robot Analysis Total . | . . . . . . Derelict Logs Recovered 3 | . . . 1 2 . Drone Launches . | . . . . . . Drone Recoveries . | . . . . . . Exploration | -11 -10 -9 -9 -7 -6 ------------- Run | Yrd Mat Mat Min Zio Pro Turns Passed 5755 | 224 509 1825 573 1894 730 Spaces Moved 3030 | 113 239 862 340 1153 323 Core 5 | 5 . . . . . Treads 2888 | 108 239 862 340 1153 186 Legs 112 | . . . . . 112 Wheels 13 | . . . . . 13 Hover . | . . . . . . Flight 12 | . . . . . 12 Fastest Speed 50 | 50 160 160 160 160 120 Average Speed 162 | 155 160 162 160 160 180 Slowest Speed 387 | 160 160 240 160 240 387 Overloaded Moves . | . . . . . . Propulsion Burnouts . | . . . . . . Robots Hopped . | . . . . . . Potential Cave-ins 1 | . . . . . 1 Cave-ins Triggered . | . . . . . . Exploration Rate (%) 50 | 6 43 51 75 86 39 Regions Visited 5 Branch Regions 3 Pre-discovered Areas 1 | . . . . 1 . Known Exits Taken . | . . . . . . Unknown Exits Taken 5 | 1 1 1 1 1 . Scrap Searched 8 | . . . 3 5 . Spaces Dug . | . . . . . . Terrain Destroyed 195 | . . . . . 195 Melee . | . . . . . . Projectile 3 | . . . . . 3 AOE 192 | . . . . . 192 Terrain Rammed . | . . . . . . Walls Destroyed . | . . . . . . Machines Disabled . | . . . . . . Actions | -11 -10 -9 -9 -7 -6 --------- Run | Yrd Mat Mat Min Zio Pro Total 3522 | 137 304 1089 360 1202 430 Wait 102 | . 19 30 7 7 39 Move 3025 | 112 238 861 339 1152 323 Hop . | . . . . . . Pick Up 60 | 6 6 29 4 10 5 Fast Attach 35 | 6 1 11 . 8 9 Attach 20 | 1 . 9 . 1 9 Detach 4 | . . 1 . . 3 Swap 33 | . 3 19 2 5 4 Drop 53 | . 3 22 3 17 8 Fire 176 | 12 34 107 5 1 17 Melee 14 | . . . . 1 13 Ram . | . . . . . . Kick . | . . . . . . Crush . | . . . . . . Escape Stasis . | . . . . . . Rewire . | . . . . . . Trap . | . . . . . . Miscellaneous . | . . . . . . Route ------- -11/Scrapyard -10/Materials (discovered 2 exits: *Mat / [*Min]) -9/Materials -9/Mines (discovered 2 exits: [*Mat] / [*Zio]) -7/Zion -6/Proximity Caves History --------- Turn | Location | Event 2 | -11/Scrapyard | Met Revision 17 5 | -11/Scrapyard | Discovered new exit (range 16) 225 | -11/Scrapyard | Entered Materials 333 | -10/Materials | Build established: Mutant 499 | -10/Materials | Discovered new exit (range 14) 613 | -10/Materials | Discovered new exit (range 7) 734 | -10/Materials | Entered another Materials area 734 | -9/Materials | Evolved 2 slots: Propulsion x1, Utility x1 1563 | -9/Materials | Lost 5 parts (1p1n2u1w) 2077 | -9/Materials | Discovered new exit (range 13) 2098 | -9/Materials | Build established: Scavenger-Mutant 2559 | -9/Materials | Entered Mines 2572 | -9/Mines | Met a Derelict who couldn't figure out how to use a Trap Extractor 2616 | -9/Mines | Learned 2 Materials zone layouts 2667 | -9/Mines | Discovered new exit (range 6) 2711 | -9/Mines | A Derelict revealed a hidden shortcut to a safe place 2721 | -9/Mines | Assembled infested the area 2892 | -9/Mines | Core integrity fell below 50% 3063 | -9/Mines | Found a damaged Exp. Sensor Array with a note attached 3066 | -9/Mines | Found Prototype Device 3132 | -9/Mines | Entered Zion 3185 | -7/Zion | Build established: Mutant 3406 | -7/Zion | Discovered new exit (range 15) 3531 | -7/Zion | System corruption cleaned by Quarantine Array 3636 | -7/Zion | Learned Factory interactive machine intel 3658 | -7/Zion | Found Prototype Special Weapon 3658 | -7/Zion | Identified RU-N14's Throwing Claymores 3662 | -7/Zion | Found RU-N14's Throwing Claymores 3665 | -7/Zion | Found RU-N14's Throwing Claymores 4075 | -7/Zion | Found Prototype Launcher 4075 | -7/Zion | Identified Rocket Array 4168 | -7/Zion | Found Relay Coupler [Programmer] 4305 | -7/Zion | Visited the Megawrench Repair Shop 4305 | -7/Zion | Megawrench repaired 3 parts 4316 | -7/Zion | Identified Exp. Sensor Array 4404 | -7/Zion | Given the Hacking Drone Bay 4532 | -7/Zion | Met Imprinter 5026 | -7/Zion | Entered Proximity Caves 5052 | -6/Proximity Caves | Unaware initiated a cargo recovery operation 5396 | -6/Proximity Caves | Core integrity fell below 20% 5488 | -6/Proximity Caves | Lost 5 parts (4n1u) 5537 | -6/Proximity Caves | Found Prototype Device 5537 | -6/Proximity Caves | Identified Adv. EM Shield 5542 | -6/Proximity Caves | Found Prototype Device 5542 | -6/Proximity Caves | Identified System Purifier 5558 | -6/Proximity Caves | Found Prototype Processor 5558 | -6/Proximity Caves | Identified Exp. Signal Interpreter 5570 | -6/Proximity Caves | Found Exp. Signal Interpreter 5750 | -6/Proximity Caves | Attracted the attention of an 0b10 base 5756 | -6/Proximity Caves | Destroyed by Y-64 Sentinel with KE Penetrator Last Messages --------------- 05559_ Dropped Signal Interpreter. 05566_ The unstable cave ceiling collapses. 05566_ Acquired Imp. Flight Unit. 05568_ Discarded Exp. Signal Interpreter. 05570_ Acquired Exp. Signal Interpreter. 05573_ Acquired Vibroblade. 05576_ The unstable cave ceiling collapses. 05583_ System corrupted: Component data lost. 05585_ The unstable cave ceiling collapses. 05612_ System corrupted: Matter fused (-9). 05732_ G-50 Soldier destroyed. 05734_ RU-N14's Throwing Claymores expended. 05734_ Destroyed Carbon-fiber Leg. 05734_ L-41 Fighter destroyed. 05747_ Storage Shell breached. 05749_ G-50 Soldier destroyed. 05753_ Penetrated by Slug. 05754_ RU-N14's Throwing Claymores expended. 05756_ Mak. Power Source destroyed. 05756_ Penetrated by Slug. Map ----- +----------------------------------------------------+ | ### #????????????????????????????????????????? | | ##????????????????????????????????????????? | | ##?????????????????????????????????????????? | | ## #???##?????????????????????????????????????? | | ### #??# ###???????????????????????????????????? | | #?# ##?# ##??????????????????????????????????? | | ### ### ##?????????????????????????????????? | | ## #?????????????????????????????????? | | ?# #??????????????????????????????????? | | ## ##??????????????????????????????????? | | # #???????????????????????????????????? | | #?????????????????????????????????? | | ### ##????????????????????? ??????????? | | ###??# #????????????????????? ????????? | | ##?????# #??????????????????? #???????? | | ##?####### #??????????????????? ##??????? | | #### #####??????????????????? ???????? | | ####??????????????????? ????????? | | = # ####???????????##??? % ?????????? | | ![!!! ## # #????###???## ### ##### ?????? | | [ /!! # ##?## ???? ??????? | | # [# /! = # # #### ???? ????????? | | ## #[# [ # # ????? #??????????? | | ?## #[# # #??????? #??????????? | | ??## !#! ### ######### s#??????????? | | ??## # @ % s ???????? | | ??# ## g ???????? | | ??##?# ########## g Y ???????? | | ?????## ##????????# ### g/ ?????????? | | ?????## ##????????###?????? ?????????? | | ???### ##??????????????????????????? | | ## ##?????????????????????????? | | # #?????????????????????????? | | # ##????????????????????????? | | # ## ##???????????????????????? | | #### ####### #???????????????????????? | | ???########?## ##???????????????????????? | | ?????# #### ##????????????????????????? | | ????## ## #######???????????????????????? | | ???## ##### #???????????????????????? | | ???# #???????????????????????? | | ??## ##???????????????????????? | | ??# ### #????????????????????????? | | ??# ### #?## ##????????????????????????? | | ??# ##?# #??# ##?????????????????????????? | | ??###?? ##??## ##??????????????????????????? | | ??????# #????# ##???????????????????????????? | | ??????## ##??### #????????????????????????????? | | ???????#####??## #????????????????????????????? | | ??????????????# ##????????????????????????????? | +----------------------------------------------------+ Best States ------------- Heat Dissipation 42 Energy Generation 15 Energy Capacity 265 Matter Stores 450 Matter Capacity 450 Sight Range 16 Robot Scan Range 14 Terrain Scan Density 10 Armor Coverage 300 Resistance: EM 50 Phase Shifting 5 Evasion (%) 45 Recoil Reduction 3 Item Schematics ----------------- Com. Wheel | -10/Materials | Hacked Stasis Canceller | -7/Zion | Archive Hrd. Heavy Armor Plating | -7/Zion | Archive Matter Filter | -7/Zion | Archive Force Field | -7/Zion | Archive Wave Gun | -7/Zion | Archive Kinecellerator | -7/Zion | Archive Lgt. Fission Core | -7/Zion | Archive Gauss Cannon | -7/Zion | Archive Lgt. Angular Momentum Engine | -7/Zion | Archive Shock Absorption System | -7/Zion | Archive Hvy. Flak Cannon | -7/Zion | Archive Imp. Field Recycling Unit | -7/Zion | Archive Magnetic Acceleration Cannon | -7/Zion | Archive Arm. Huge Wheel | -7/Zion | Archive Variable Charge Gun | -7/Zion | Archive Robot Schematics ------------------ W-25 Informer | -7/Zion | Archive L-41 Fighter | -7/Zion | Archive A-02 Transporter | -7/Zion | Archive G-73 Enforcer | -7/Zion | Archive Fabricated ------------ Nothing Repaired ---------- Nothing Alien Tech Used ----------------- None Achievements -------------- None Challenges ------------ None Game ------ Seed DroneExplosiveTelecube Manual? 0 Play Time 00:44:59 Cumulative 63.8 hours Start 2025.07.24 @ 09:54:38 End 2025.07.24 @ 10:37:51 Sessions 1 Manual Loads 0 Difficulty Rogue Special Mode None Game No. 47 Rogue 47 Adventurer 0 Explorer 0 Win Type - Total 0 Types 0/0/0/0/0/0/0/0/0/0 Lore% 43 Gallery% 45 Achievement% 38 Wizard Run 0 Options --------- Layout 1 ASCII 0 Keyboard 0 Movement Numpad Keybinds 0 Fullscreen 1 Font 24/Smallcaps Map View 50x35 Zoom Use 0% Tactical HUD 1 Map Filters NONE Filters NONE Steam 1 RUN: 805f43c0-4737-4331-94bf-1662a498fc2e